fUST/lending_fUST_20250802
["ID","MTS","AMOUNT","RATE_DAILY","PERIOD"]
[376733093,1754091055312,-460.0,0.00021159,2]
[376733094,1754091055323,-460.0,0.00021159,2]
[376733095,1754091055332,-413.2,0.00021159,2]
[376733096,1754091055342,-1419.71,0.00021159,2]
[376733097,1754091055351,-460.0,0.00021159,2]
[376733098,1754091055360,-460.0,0.00021159,2]
[376733099,1754091055370,-460.0,0.00021159,2]
[376733100,1754091055379,-460.0,0.00021159,2]
[376733101,1754091055388,-151.0,0.0002116,2]
[376733102,1754091055400,-557.79,0.0002116,2]
[376733103,1754091055414,-460.0,0.0002116,2]
[376733104,1754091055423,-1508.75,0.0002116,2]
[376733105,1754091055433,-460.0,0.0002116,2]
[376733106,1754091055443,-460.0,0.0002116,2]
[376733107,1754091055452,-460.0,0.0002116,2]
[376733108,1754091055462,-554.96,0.0002116,2]
[376733109,1754091055471,-208.2,0.0002116,2]
[376733110,1754091055482,-460.0,0.0002116,2]
[376733111,1754091055492,-1916.86,0.0002116,2]
[376733112,1754091055502,-727.88,0.00021161,2]
[376733113,1754091055511,-535.37,0.00021161,2]
[376733114,1754091055520,-2985.37,0.00021161,2]
[376733115,1754091055530,-460.0,0.00021161,2]
[376733116,1754091055539,-460.0,0.00021161,2]
[376733117,1754091055548,-1912.99,0.00021162,2]
[376733118,1754091055557,-155.0,0.00021164,2]
[376733119,1754091055567,-1518.72061119,0.00021168,2]
[376733120,1754091055578,-1000.0,0.00021168,2]
[376733121,1754091055587,-1138.40224091,0.00021168,2]
[376733122,1754091055597,-503.65022164,0.00021168,2]
[376733123,1754091055607,-500.0,0.00021168,2]
[376733124,1754091055616,-500.0,0.00021168,2]
[376733125,1754091055625,-151.0,0.000212,4]
[376733126,1754091055635,-653.46840815,0.00021279,5]
[376733127,1754091055644,-170.28588357,0.00021331,2]
[376733128,1754091055653,-500.0,0.00021332,2]
[376733129,1754091055663,-500.0,0.00021332,2]
[376733130,1754091055672,-151.0,0.00021332,2]
[376733131,1754091055681,-860.2785724,0.0002137,2]
[376733132,1754091055691,-151.0,0.000214,4]
[376733133,1754091055700,-261.74517672,0.00021416,2]
[376733134,1754091055709,-1000.0,0.00021421,2]
[376733135,1754091055719,-500.0,0.00021421,2]
[376733136,1754091055728,-500.0,0.00021421,2]
[376733137,1754091055737,-1000.0,0.00021421,2]
[376733138,1754091055747,-200.0,0.00021421,2]
[376733139,1754091055757,-1000.0,0.00021421,2]
[376733140,1754091055767,-530.25,0.0002143,2]
[376733141,1754091055776,-526.08,0.0002143,2]
[376733142,1754091055785,-904.57,0.0002143,2]
[376733143,1754091055795,-460.0,0.0002143,2]
[376733144,1754091055804,-460.0,0.0002143,2]
[376733145,1754091055814,-1626.44,0.00021431,2]
[376733146,1754091055826,-650.75,0.00021431,2]
[376733147,1754091055921,-460.0,0.00021431,2]
[376733148,1754091055931,-767.29,0.00021431,2]
[376733149,1754091055941,-1087.58,0.00021431,2]
[376733150,1754091055951,-683.87,0.00021431,2]
[376733151,1754091055961,-1381.02,0.00021431,2]
[376733152,1754091055970,-525.6,0.00021431,2]
[376733153,1754091055980,-460.0,0.00021431,2]
[376733154,1754091055990,-657.93,0.00021431,2]
[376733155,1754091056000,-460.0,0.00021431,2]
[376733156,1754091056009,-472.11,0.00021431,2]
[376733157,1754091056019,-565.03,0.00021431,2]
[376733158,1754091056030,-654.22,0.00021431,2]
[376733159,1754091056040,-1062.48,0.00021431,2]
[376733160,1754091056050,-460.0,0.00021431,2]
[376733161,1754091056059,-460.0,0.00021432,2]
[376733162,1754091056070,-460.0,0.00021432,2]
[376733163,1754091056079,-534.57,0.00021432,2]
[376733164,1754091056089,-6339.86,0.00021432,2]
[376733165,1754091056098,-460.0,0.00021432,2]
[376733166,1754091056108,-635.142156,0.00021432,2]
[376733167,1754091056118,-635.142156,0.00021432,2]
[376733168,1754091056127,-463.6,0.00021432,2]
[376733169,1754091056136,-175.121503,0.00021432,2]
[376733170,1754091056146,-175.121503,0.00021432,2]
[376733171,1754091056155,-460.36,0.00021432,2]
[376733172,1754091056165,-3261.32,0.00021432,2]
[376733173,1754091056174,-460.0,0.00021432,2]
[376733174,1754091056184,-854.96,0.00021432,2]
[376733175,1754091056194,-460.0,0.00021432,2]
[376733176,1754091056203,-582.52,0.00021432,2]
[376733177,1754091056213,-460.0,0.00021432,2]
[376733178,1754091056223,-460.0,0.00021432,2]
[376733179,1754091056232,-946.35,0.00021432,2]
[376733180,1754091056242,-587.9,0.00021432,2]
[376733181,1754091056252,-534.27,0.00021432,2]
[376733182,1754091056262,-460.0,0.00021432,2]
[376733183,1754091056271,-460.0,0.00021432,2]
[376733184,1754091056280,-460.0,0.00021432,2]
[376733185,1754091056290,-612.02,0.00021432,2]
[376733186,1754091056299,-125.0042585,0.00021432,2]
[376733187,1754091056428,-334.9957415,0.00021432,2]
[376733188,1754091056439,-516.09,0.00021432,2]
[376733189,1754091056449,-865.73,0.00021432,2]
[376733190,1754091056459,-545.71,0.00021432,2]
[376733191,1754091056469,-502.66036105,0.00021432,2]
[376733192,1754091056482,-186.84963895,0.00021432,2]
[376733193,1754091056493,-1842.57,0.00021432,2]
[376733194,1754091056503,-460.0,0.00021432,2]
[376733195,1754091056512,-556.43,0.00021432,2]
[376733196,1754091056522,-111.57579145,0.00021432,2]
[376733197,1754091056538,-500.0,0.00019788,2]
[376733198,1754091056548,-348.42420855,0.00021432,2]
[376733199,1754091056557,-460.0,0.00021432,2]
[376733200,1754091056567,-460.0,0.00021432,2]
[376733201,1754091056577,-546.06,0.00021432,2]
[376733202,1754091056586,-468.36,0.00021432,2]
[376733203,1754091056597,-460.0,0.00021432,2]
[376733204,1754091056607,-460.0,0.00021432,2]
[376733205,1754091056616,-920.78,0.00021432,2]
[376733206,1754091056625,-460.0,0.00021432,2]
[376733207,1754091056634,-691.07,0.00021432,2]
[376733208,1754091056644,-151.0,0.00021433,2]
[376733209,1754091056653,-151.0,0.00021433,2]
[376733210,1754091056662,-151.0,0.00021433,2]
[376733211,1754091056671,-926.42,0.00021433,2]
[376733212,1754091056681,-460.0,0.00021433,2]
[376733213,1754091056690,-460.0,0.00021433,2]
[376733214,1754091056700,-1004.42,0.00021433,2]
[376733215,1754091056709,-693.44,0.00021433,2]
[376733216,1754091056719,-511.5,0.00021433,2]
[376733217,1754091056728,-460.0,0.00021433,2]
[376733218,1754091056737,-1029.66,0.00021433,2]
[376733219,1754091056746,-460.0,0.00021433,2]
[376733220,1754091056756,-462.19,0.00021433,2]
[376733221,1754091056765,-460.0,0.00021433,2]
[376733222,1754091056774,-460.0,0.00021433,2]
[376733223,1754091056783,-846.17,0.00021433,2]
[376733224,1754091056792,-621.67,0.00021433,2]
[376733225,1754091056802,-924.56,0.00021433,2]
[376733226,1754091056812,-566.98,0.00021433,2]
[376733227,1754091056823,-1675.56,0.00021433,2]
[376733228,1754091056832,-460.0,0.00021433,2]
[376733229,1754091056842,-460.0,0.00021433,2]
[376733230,1754091056852,-1419.71,0.00021433,2]
[376733231,1754091056861,-460.0,0.00021433,2]
[376733232,1754091056871,-460.0,0.00021433,2]
[376733233,1754091056881,-460.0,0.00021433,2]
[376733234,1754091056890,-323.0,0.00021433,2]
[376733235,1754091056900,-557.79,0.00021434,2]
[376733236,1754091056909,-460.0,0.00021434,2]
[376733237,1754091056919,-1508.75,0.00021434,2]
[376733238,1754091056928,-460.0,0.00021434,2]
[376733239,1754091056938,-460.0,0.00021434,2]
[376733240,1754091056947,-460.0,0.00021434,2]
[376733241,1754091056957,-554.96,0.00021434,2]
[376733242,1754091056967,-460.0,0.00021434,2]
[376733243,1754091056977,-151.0,0.00021435,2]
[376733244,1754091056987,-151.0,0.00021435,2]
[376733245,1754091056996,-727.88,0.00021435,2]
[376733246,1754091057004,-151.0,0.00021435,2]
[376733247,1754091057014,-151.0,0.00021435,2]
[376733248,1754091057023,-151.0,0.00021435,2]
[376733249,1754091057033,-535.37,0.00021435,2]
[376733250,1754091057042,-2985.37,0.00021435,2]
[376733251,1754091057051,-460.0,0.00021435,2]
[376733252,1754091057060,-460.0,0.00021435,2]
[376733253,1754091057070,-1912.99,0.00021436,2]
[376733254,1754091057079,-1000.0,0.00021468,2]
[376733255,1754091057089,-200.0,0.00021538,15]
[376733256,1754091057100,-200.0,0.00021538,15]
[376733257,1754091057110,-200.0,0.00021538,15]
[376733258,1754091057119,-200.0,0.00021538,15]
[376733259,1754091057128,-320.0,0.00021538,15]
[376733260,1754091057137,-653.46840815,0.00021555,5]
[376733261,1754091057146,-151.0,0.000217,3]
[376733262,1754091057155,-530.25,0.00021704,2]
[376733263,1754091057164,-526.08,0.00021704,2]
[376733264,1754091057174,-904.57,0.00021704,2]
[376733265,1754091057183,-460.0,0.00021704,2]
[376733266,1754091057192,-460.0,0.00021704,2]
[376733267,1754091057202,-1626.44,0.00021705,2]
[376733268,1754091057211,-650.75,0.00021705,2]
[376733269,1754091057220,-460.0,0.00021705,2]
[376733270,1754091057229,-767.29,0.00021705,2]
[376733271,1754091057238,-1087.58,0.00021705,2]
[376733272,1754091057247,-683.87,0.00021705,2]
[376733273,1754091057256,-1381.02,0.00021705,2]
[376733274,1754091057265,-525.6,0.00021705,2]
[376733275,1754091057275,-460.0,0.00021705,2]
[376733276,1754091057284,-657.93,0.00021705,2]
[376733277,1754091057373,-460.0,0.00021705,2]
[376733278,1754091057383,-472.11,0.00021705,2]
[376733279,1754091057392,-654.22,0.00021705,2]
[376733280,1754091057405,-1062.48,0.00021705,2]
[376733281,1754091057415,-460.0,0.00021705,2]
[376733282,1754091057424,-460.0,0.00021706,2]
[376733283,1754091057434,-460.0,0.00021706,2]
[376733284,1754091057445,-534.57,0.00021706,2]
[376733285,1754091057454,-6339.86,0.00021706,2]
[376733286,1754091057462,-460.0,0.00021706,2]
[376733287,1754091057472,-460.36,0.00021706,2]
[376733288,1754091057482,-132.22398166,0.00021706,2]
[376733289,1754091057632,314.89120642,0.0001914,2]
[376733290,1754091057888,-460.0,0.0001924,2]
[376733291,1754091057897,-460.0,0.00019514,2]
[376733292,1754091057907,-151.52,0.00019779,3]
[376733293,1754091057917,-500.0,0.00019788,2]
[376733294,1754091057927,-268.64,0.00019788,2]
[376733295,1754091057936,-151.0,0.00020289,2]
[376733296,1754091057946,-151.0,0.00020289,2]
[376733297,1754091057959,-303.04,0.00021149,3]
[376733298,1754091057969,-1570.21652055,0.00021434,2]
[376733299,1754091057981,-346.64347945,0.00021434,2]
[376733300,1754091057990,-3.55652055,0.00021706,2]
[376733301,1754091058053,-3125.53949779,0.00021706,2]
[376733302,1754091058063,-460.0,0.00021706,2]
[376733303,1754091058073,-151.0,0.00021706,2]
[376733304,1754091058083,-460.0,0.00021706,2]
[376733305,1754091058093,-582.52,0.00021706,2]
[376733306,1754091058102,-460.0,0.00021706,2]
[376733307,1754091058111,-330.289489,0.00021706,2]
[376733308,1754091058121,-330.289489,0.00021706,2]
[376733309,1754091058130,-460.0,0.00021706,2]
[376733310,1754091058140,-151.0,0.00021706,2]
[376733311,1754091058149,-946.35,0.00021706,2]
[376733312,1754091058159,-184.053969,0.00021706,2]
[376733313,1754091058168,-587.9,0.00021706,2]
[376733314,1754091058178,-184.053969,0.00021706,2]
[376733315,1754091058187,-534.27,0.00021706,2]
[376733316,1754091058196,-538.33,0.00021706,2]
[376733317,1754091058206,-460.0,0.00021706,2]
[376733318,1754091058215,-460.0,0.00021706,2]
[376733319,1754091058225,-108.07011584,0.00021706,2]
[376733320,1754091058600,-503.94988416,0.00021706,2]
[376733321,1754091058609,-460.0,0.00021706,2]
[376733322,1754091058619,-516.09,0.00021706,2]
[376733323,1754091058629,-865.73,0.00021706,2]
[376733324,1754091058639,-545.71,0.00021706,2]
[376733325,1754091058648,-689.51,0.00021706,2]
[376733326,1754091058658,-1842.57,0.00021706,2]
[376733327,1754091058667,-566.16,0.00021706,2]
[376733328,1754091058677,-556.43,0.00021706,2]
[376733329,1754091058686,-460.0,0.00021706,2]
[376733330,1754091058696,-460.0,0.00021706,2]
[376733331,1754091058705,-460.0,0.00021706,2]
[376733332,1754091058715,-546.06,0.00021706,2]
[376733333,1754091058725,-468.36,0.00021706,2]
[376733334,1754091058734,-460.0,0.00021706,2]
[376733335,1754091058744,-920.78,0.00021706,2]
[376733336,1754091058754,-460.0,0.00021706,2]
[376733337,1754091058763,-460.0,0.00021706,2]
[376733338,1754091058773,-691.07,0.00021706,2]
[376733339,1754091058782,-151.0,0.00021707,2]
[376733340,1754091058793,-151.0,0.00021707,2]
[376733341,1754091058802,-257.725498,0.00021707,2]
[376733342,1754091058812,-460.0,0.00021707,2]
[376733343,1754091058914,-460.0,0.00021707,2]
[376733344,1754091058924,-1004.42,0.00021707,2]
[376733345,1754091058933,-693.44,0.00021707,2]
[376733346,1754091058942,-511.5,0.00021707,2]
[376733347,1754091058952,-151.0,0.00021707,2]
[376733348,1754091058962,-460.0,0.00021707,2]
[376733349,1754091058971,-1029.66,0.00021707,2]
[376733350,1754091058981,-460.0,0.00021707,2]
[376733351,1754091058990,-462.19,0.00021707,2]
[376733352,1754091059000,-460.0,0.00021707,2]
[376733353,1754091059009,-460.0,0.00021707,2]
[376733354,1754091059018,-846.17,0.00021707,2]
[376733355,1754091059027,-621.67,0.00021707,2]
[376733356,1754091059036,-924.56,0.00021707,2]
[376733357,1754091059046,-566.98,0.00021707,2]
[376733358,1754091059056,-1675.56,0.00021707,2]
[376733359,1754091059065,-460.0,0.00021707,2]
[376733360,1754091059077,-455.03919401,0.00021707,2]
[376733361,1754091059086,-1419.71,0.00021707,2]
[376733362,1754091059096,-460.0,0.00021707,2]
[376733363,1754091059105,-460.0,0.00021707,2]
[376733364,1754091059114,-460.0,0.00021707,2]
[376733365,1754091059123,-151.0,0.00021707,2]
[376733366,1754091059132,-151.0,0.00021708,2]
[376733367,1754091059141,-151.0,0.00021708,2]
[376733368,1754091059151,-151.0,0.00021708,2]
[376733369,1754091059160,-151.0,0.00021708,2]
[376733370,1754091059170,-557.79,0.00021708,2]
[376733371,1754091059179,-460.0,0.00021708,2]
[376733372,1754091059188,-1508.75,0.00021708,2]
[376733373,1754091059198,-151.0,0.00021708,2]
[376733374,1754091059208,-460.0,0.00021708,2]
[376733375,1754091059219,-460.0,0.00021708,2]
[376733376,1754091059228,-460.0,0.00021708,2]
[376733377,1754091059239,-554.96,0.00021708,2]
[376733378,1754091059248,-460.0,0.00021708,2]
[376733379,1754091059258,-1916.86,0.00021708,2]
[376733380,1754091059267,-151.0,0.00021709,2]
[376733381,1754091059277,-151.0,0.00021709,2]
[376733382,1754091059286,-151.0,0.00021709,2]
[376733383,1754091059295,-189.951061,0.00021709,2]
[376733384,1754091059304,-727.88,0.00021709,2]
[376733385,1754091059314,-535.37,0.00021709,2]
[376733386,1754091059324,-2985.37,0.00021709,2]
[376733387,1754091059334,-460.0,0.00021709,2]
[376733388,1754091059344,-460.0,0.00021709,2]
[376733389,1754091059353,-1912.99,0.0002171,2]
[376733390,1754091059362,-500.0,0.00021738,2]
[376733391,1754091059371,-200.0,0.0002176,2]
[376733392,1754091059381,-160.0,0.00021767,2]
[376733393,1754091059390,-653.46840815,0.00021831,6]
[376733394,1754091059403,-500.0,0.00021917,2]
[376733395,1754091059413,-209.82823062,0.00021917,2]
[376733396,1754091059422,-300.0,0.00021918,2]
[376733397,1754091059432,-305.7,0.00021933,2]
[376733398,1754091059444,-1626.91030039,0.00021968,2]
[376733399,1754091059454,-507.01081272,0.00021968,2]
[376733400,1754091059463,-1000.0,0.00021968,2]
[376733401,1754091059473,-530.25,0.00021978,2]
[376733402,1754091059483,-526.08,0.00021978,2]
[376733403,1754091059493,-904.57,0.00021978,2]
[376733404,1754091059502,-460.0,0.00021978,2]
[376733405,1754091059511,-288.68,0.00021978,2]
[376733406,1754091059521,-1626.44,0.00021979,2]
[376733407,1754091059530,-650.75,0.00021979,2]
[376733408,1754091059539,-460.0,0.00021979,2]
[376733409,1754091059548,-767.29,0.00021979,2]
[376733410,1754091059558,-1087.58,0.00021979,2]
[376733411,1754091059567,-683.87,0.00021979,2]
[376733412,1754091059577,-1381.02,0.00021979,2]
[376733413,1754091059587,-525.6,0.00021979,2]
[376733414,1754091059596,-580.8,0.00021979,2]
[376733415,1754091059605,-657.93,0.00021979,2]
[376733416,1754091059615,-460.0,0.00021979,2]
[376733417,1754091059624,-472.11,0.00021979,2]
[376733418,1754091059633,-654.22,0.00021979,2]
[376733419,1754091059643,-1062.48,0.00021979,2]
[376733420,1754091059652,-460.0,0.00021979,2]
[376733421,1754091059662,-460.0,0.0002198,2]
[376733422,1754091059671,-460.0,0.0002198,2]
[376733423,1754091059680,-534.57,0.0002198,2]
[376733424,1754091059690,-6339.86,0.0002198,2]
[376733425,1754091059700,-215.17635366,0.0002198,2]
[376733426,1754091059709,-460.36,0.0002198,2]
[376733427,1754091059719,-3261.32,0.0002198,2]
[376733428,1754091059728,-460.0,0.0002198,2]
[376733429,1754091059738,-460.0,0.0002198,2]
[376733430,1754091059747,-582.52,0.0002198,2]
[376733431,1754091059756,-460.0,0.0002198,2]
[376733432,1754091059766,-460.0,0.0002198,2]
[376733433,1754091059775,-946.35,0.0002198,2]
[376733434,1754091059784,-587.9,0.0002198,2]
[376733435,1754091059794,-534.27,0.0002198,2]
[376733436,1754091059803,-460.0,0.0002198,2]
[376733437,1754091059812,-460.0,0.0002198,2]
[376733438,1754091059822,-612.02,0.0002198,2]
[376733439,1754091059831,-460.0,0.0002198,2]
[376733440,1754091059841,-516.09,0.0002198,2]
[376733441,1754091059851,-865.73,0.0002198,2]
[376733442,1754091059860,-545.71,0.0002198,2]
[376733443,1754091059870,-689.51,0.0002198,2]
[376733444,1754091059879,-1842.57,0.0002198,2]
[376733445,1754091059888,-556.43,0.0002198,2]
[376733446,1754091059897,-460.0,0.0002198,2]
[376733447,1754091059907,-498.19,0.0002198,2]
[376733448,1754091059917,-460.0,0.0002198,2]
[376733449,1754091059926,-546.06,0.0002198,2]
[376733450,1754091059936,-468.36,0.0002198,2]
[376733451,1754091059945,-460.0,0.0002198,2]
[376733452,1754091059954,-920.78,0.0002198,2]
[376733453,1754091059964,-460.0,0.0002198,2]
[376733454,1754091059973,-460.0,0.0002198,2]
[376733455,1754091059982,-691.07,0.0002198,2]
[376733456,1754091059992,-151.0,0.00021981,7]
[376733457,1754091060001,-460.0,0.00021981,2]
[376733458,1754091060010,-460.0,0.00021981,2]
[376733459,1754091060020,-1004.42,0.00021981,2]
[376733460,1754091060029,-693.44,0.00021981,2]
[376733461,1754091060039,-511.5,0.00021981,2]
[376733462,1754091060049,-460.0,0.00021981,2]
[376733463,1754091060059,-1029.66,0.00021981,2]
[376733464,1754091060068,-635.142156,0.00021981,7]
[376733465,1754091060078,-635.142156,0.00021981,7]
[376733466,1754091060087,-460.0,0.00021981,2]
[376733467,1754091060097,-175.121503,0.00021981,7]
[376733468,1754091060106,-175.121503,0.00021981,7]
[376733469,1754091060116,-462.19,0.00021981,2]
[376733470,1754091060125,-460.0,0.00021981,2]
[376733471,1754091060134,-846.17,0.00021981,2]
[376733472,1754091060144,-621.67,0.00021981,2]
[376733473,1754091060154,-924.56,0.00021981,2]
[376733474,1754091060163,-566.98,0.00021981,2]
[376733475,1754091060172,-1675.56,0.00021981,2]
[376733476,1754091060182,-460.0,0.00021981,2]
[376733477,1754091060191,-1419.71,0.00021981,2]
[376733478,1754091060200,-589.2,0.00021981,2]
[376733479,1754091060210,-460.0,0.00021981,2]
[376733480,1754091060291,-460.0,0.00021981,2]
[376733481,1754091060300,-557.79,0.00021982,2]
[376733482,1754091060310,-460.0,0.00021982,2]
[376733483,1754091060319,-1508.75,0.00021982,2]
[376733484,1754091060329,-460.0,0.00021982,2]
[376733485,1754091060338,-460.0,0.00021982,2]
[376733486,1754091060347,-460.0,0.00021982,2]
[376733487,1754091060358,-554.96,0.00021982,2]
[376733488,1754091060367,-460.0,0.00021982,2]
[376733489,1754091060377,-1916.86,0.00021982,2]
[376733490,1754091060387,-727.88,0.00021983,2]
[376733491,1754091060397,-535.37,0.00021983,2]
[376733492,1754091060409,-2985.37,0.00021983,2]
[376733493,1754091060418,-460.0,0.00021983,2]
[376733494,1754091060427,-460.0,0.00021983,2]
[376733495,1754091060436,-1912.99,0.00021984,2]
[376733496,1754091060447,-807.09,0.00022,7]
[376733497,1754091060456,-1577.2,0.00022,7]
[376733498,1754091060465,-151.0,0.00022,3]
[376733499,1754091060475,-224.874054,0.00022,7]
[376733500,1754091060485,-179.0,0.00022,2]
[376733501,1754091060495,-653.46840815,0.00022107,6]
[376733502,1754091060504,-764.473,0.00022226,2]
[376733503,1754091060514,-178.879,0.00022226,2]
[376733504,1754091060523,-900.0,0.00022247,2]
[376733505,1754091060532,-530.25,0.00022252,2]
[376733506,1754091060542,-526.08,0.00022252,2]
[376733507,1754091060551,-904.57,0.00022252,2]
[376733508,1754091060561,-460.0,0.00022252,2]
[376733509,1754091060572,-1626.44,0.00022253,2]
[376733510,1754091060582,-650.75,0.00022253,2]
[376733511,1754091060592,-460.0,0.00022253,2]
[376733512,1754091060602,-767.29,0.00022253,2]
[376733513,1754091060611,-1087.58,0.00022253,2]
[376733514,1754091060621,-683.87,0.00022253,2]
[376733515,1754091060630,-1381.02,0.00022253,2]
[376733516,1754091060639,-525.6,0.00022253,2]
[376733517,1754091060649,-657.93,0.00022253,2]
[376733518,1754091060658,-460.0,0.00022253,2]
[376733519,1754091060668,-472.11,0.00022253,2]
[376733520,1754091060678,-654.22,0.00022253,2]
[376733521,1754091060688,-1062.48,0.00022253,2]
[376733522,1754091060697,-460.0,0.00022253,2]
[376733523,1754091060707,-460.0,0.00022254,2]
[376733524,1754091060716,-460.0,0.00022254,2]
[376733525,1754091060735,-534.57,0.00022254,2]
[376733526,1754091060746,-6339.86,0.00022254,2]
[376733527,1754091060757,-460.36,0.00022254,2]
[376733528,1754091060767,-3261.32,0.00022254,2]
[376733529,1754091060778,-460.0,0.00022254,2]
[376733530,1754091060788,-460.0,0.00022254,2]
[376733531,1754091060798,-582.52,0.00022254,2]
[376733532,1754091060807,-460.0,0.00022254,2]
[376733533,1754091060817,-330.289489,0.00022254,7]
[376733534,1754091060830,-330.289489,0.00022254,7]
[376733535,1754091060841,-267.12,0.00022254,2]
[376733536,1754091060851,-946.35,0.00022254,2]
[376733537,1754091060861,-184.053969,0.00022254,7]
[376733538,1754091060871,-587.9,0.00022254,2]
[376733539,1754091060881,-184.053969,0.00022254,7]
[376733540,1754091060891,-534.27,0.00022254,2]
[376733541,1754091060902,-203.66452426,0.00022254,2]
[376733542,1754091060913,-460.0,0.00022254,2]
[376733543,1754091060923,-612.02,0.00022254,2]
[376733544,1754091060934,-460.0,0.00022254,2]
[376733545,1754091060944,-516.09,0.00022254,2]
[376733546,1754091060954,-865.73,0.00022254,2]
[376733547,1754091060964,-545.71,0.00022254,2]
[376733548,1754091060974,-689.51,0.00022254,2]
[376733549,1754091060984,-1842.57,0.00022254,2]
[376733550,1754091060994,-556.43,0.00022254,2]
[376733551,1754091061004,-460.0,0.00022254,2]
[376733552,1754091061014,-489.99,0.00022254,2]
[376733553,1754091061023,-546.06,0.00022254,2]
[376733554,1754091061033,-468.36,0.00022254,2]
[376733555,1754091061042,-460.0,0.00022254,2]
[376733556,1754091061052,-920.78,0.00022254,2]
[376733557,1754091061061,-460.0,0.00022254,2]
[376733558,1754091061072,-460.0,0.00022254,2]
[376733559,1754091061081,-691.07,0.00022254,2]
[376733560,1754091061091,-151.0,0.00022255,7]
[376733561,1754091061101,-151.0,0.00022255,7]
[376733562,1754091061110,-151.0,0.00022255,7]
[376733563,1754091061120,-460.0,0.00022255,2]
[376733564,1754091061129,-151.0,0.00022255,7]
[376733565,1754091061139,-151.0,0.00022255,7]
[376733566,1754091061150,-460.0,0.00022255,2]
[376733567,1754091061159,-1004.42,0.00022255,2]
[376733568,1754091061170,-693.44,0.00022255,2]
[376733569,1754091061180,-511.5,0.00022255,2]
[376733570,1754091061190,-151.0,0.00022255,7]
[376733571,1754091061199,-151.0,0.00022255,7]
[376733572,1754091061209,-460.0,0.00022255,2]
[376733573,1754091061219,-1029.66,0.00022255,2]
[376733574,1754091061228,-460.0,0.00022255,2]
[376733575,1754091061238,-462.19,0.00022255,2]
[376733576,1754091061248,-151.0,0.00022255,7]
[376733577,1754091061257,-460.0,0.00022255,2]
[376733578,1754091061267,-846.17,0.00022255,2]
[376733579,1754091061276,-621.67,0.00022255,2]
[376733580,1754091061286,-924.56,0.00022255,2]
[376733581,1754091061296,-566.98,0.00022255,2]
[376733582,1754091061306,-1675.56,0.00022255,2]
[376733583,1754091061315,-460.0,0.00022255,2]
[376733584,1754091061325,-1419.71,0.00022255,2]
[376733585,1754091061335,-460.0,0.00022255,2]
[376733586,1754091061348,-460.0,0.00022255,2]
[376733587,1754091061358,-151.0,0.00022255,7]
[376733588,1754091061367,-557.79,0.00022256,2]
[376733589,1754091061377,-460.0,0.00022256,2]
[376733590,1754091061386,-1508.75,0.00022256,2]
[376733591,1754091061396,-460.0,0.00022256,2]
[376733592,1754091061408,-460.0,0.00022256,2]